[Event "Snabb-SM för veteraner, 50+ 2019"]
[Site "Schackcentrum, Vegagatan 20, Gothenburg, Sweden"]
[Date "2019.10.05"]
[Round "3.2"]
[White "Svenn, Gosta"]
[Black "Borvander, Tom"]
[Result "1/2-1/2"]
[TimeControl "15 minutes + 10 seconds per move from move one"]
[WhiteTitle "FM"]
[WhiteFideId "1700553"]
[BlackFideId "1707388"]
[WhiteElo "2272"]
[BlackElo "2066"]

1. d4 {[%clk 00:15:18]} {[%emt 00:00:01]} Nf6 {[%clk 00:15:19]} {[%emt
00:00:02]} 2. c4 {[%clk 00:15:26]} {[%emt 00:00:02]} g6 {[%clk 00:15:27]}
{[%emt 00:00:02]} 3. Nc3 {[%clk 00:15:34]} {[%emt 00:00:01]} Bg7 {[%clk
00:15:35]} {[%emt 00:00:02]} 4. e4 {[%clk 00:15:42]} {[%emt 00:00:02]} d6
{[%clk 00:15:44]} {[%emt 00:00:01]} 5. Nf3 {[%clk 00:15:49]} {[%emt 00:00:03]}
O-O {[%clk 00:15:52]} {[%emt 00:00:03]} 6. Be2 {[%clk 00:15:57]} {[%emt
00:00:02]} e5 {[%clk 00:15:59]} {[%emt 00:00:02]} 7. O-O {[%clk 00:16:02]}
{[%emt 00:00:04]} Nc6 {[%clk 00:16:08]} {[%emt 00:00:02]} 8. d5 {[%clk
00:16:10]} {[%emt 00:00:02]} Ne7 {[%clk 00:16:16]} {[%emt 00:00:02]} 9. Ne1
{[%clk 00:16:08]} {[%emt 00:00:11]} Nd7 {[%clk 00:16:24]} {[%emt 00:00:03]} 10.
Nd3 {[%clk 00:16:07]} {[%emt 00:00:11]} f5 {[%clk 00:16:12]} {[%emt 00:00:22]}
11. a4 {[%clk 00:16:11]} {[%emt 00:00:06]} fxe4 {[%clk 00:12:09]} {[%emt
00:04:13]} 12. Nxe4 {[%clk 00:16:19]} {[%emt 00:00:02]} Nf6 {[%clk 00:12:17]}
{[%emt 00:00:02]} 13. f3 {[%clk 00:14:49]} {[%emt 00:01:40]} Nf5 {[%clk
00:12:21]} {[%emt 00:00:06]} 14. Bg5 {[%clk 00:13:07]} {[%emt 00:01:51]} h6
{[%clk 00:11:47]} {[%emt 00:00:46]} 15. Bd2 {[%clk 00:12:42]} {[%emt 00:00:34]}
Kh7 {[%clk 00:11:27]} {[%emt 00:00:30]} 16. Ndf2 {[%clk 00:12:28]} {[%emt
00:00:24]} a5 {[%clk 00:10:58]} {[%emt 00:00:39]} 17. Bd3 {[%clk 00:11:51]}
{[%emt 00:00:47]} Bd7 {[%clk 00:10:26]} {[%emt 00:00:43]} 18. Re1 {[%clk
00:11:15]} {[%emt 00:00:46]} b6 {[%clk 00:09:36]} {[%emt 00:01:00]} 19. Bc3
{[%clk 00:10:58]} {[%emt 00:00:26]} Nh4 {[%clk 00:08:41]} {[%emt 00:01:05]} 20.
Ng3 {[%clk 00:08:24]} {[%emt 00:02:43]} Ng8 {[%clk 00:07:52]} {[%emt 00:01:00]}
21. Qc2 {[%clk 00:08:08]} {[%emt 00:00:26]} Ne7 {[%clk 00:07:57]} {[%emt
00:00:05]} 22. Re4 {[%clk 00:05:18]} {[%emt 00:03:01]} Nef5 {[%clk 00:07:25]}
{[%emt 00:00:42]} 23. Rae1 {[%clk 00:05:22]} {[%emt 00:00:06]} Kh8 {[%clk
00:07:00]} {[%emt 00:00:35]} 24. b3 {[%clk 00:03:08]} {[%emt 00:02:24]} g5
{[%clk 00:06:56]} {[%emt 00:00:15]} 25. R4e2 {[%clk 00:02:38]} {[%emt
00:00:40]} Qe8 {[%clk 00:05:37]} {[%emt 00:01:29]} 26. Nfe4 {[%clk 00:02:27]}
{[%emt 00:00:20]} Ne7 {[%clk 00:05:04]} {[%emt 00:00:43]} 27. Nf2 {[%clk
00:01:29]} {[%emt 00:01:07]} Neg6 {[%emt 00:00:31]} 28. Bxg6 {[%clk 00:01:34]}
{[%emt 00:00:04]} Nxg6 {[%clk 00:04:39]} {[%emt 00:00:17]} 29. Nge4 {[%clk
00:01:34]} {[%emt 00:00:09]} Nf4 {[%clk 00:04:43]} {[%emt 00:00:07]} 30. Rd2
{[%clk 00:01:37]} {[%emt 00:00:06]} Bf5 {[%clk 00:04:39]} {[%emt 00:00:14]} 31.
Rf1 {[%clk 00:01:25]} {[%emt 00:00:22]} Qg6 {[%clk 00:04:07]} {[%emt 00:00:42]}
32. Rdd1 {[%clk 00:00:59]} {[%emt 00:00:36]} g4 {[%clk 00:03:46]} {[%emt
00:00:31]} 33. fxg4 {[%clk 00:00:42]} {[%emt 00:00:28]} Bxg4 {[%clk 00:03:55]}
{[%emt 00:00:01]} 34. Nxg4 {[%clk 00:00:39]} {[%emt 00:00:12]} Qxg4 {[%clk
00:04:03]} {[%emt 00:00:02]} 35. Kh1 {[%clk 00:00:37]} {[%emt 00:00:12]} Rg8
{[%clk 00:02:46]} {[%emt 00:01:27]} 36. Rde1 {[%clk 00:00:42]} {[%emt
00:00:04]} Raf8 {[%clk 00:02:43]} {[%emt 00:00:13]} 37. Qd2 {[%clk 00:00:44]}
{[%emt 00:00:09]} h5 {[%clk 00:02:28]} {[%emt 00:00:26]} 38. g3 {[%clk
00:00:22]} {[%emt 00:00:31]} Ng6 {[%clk 00:02:07]} {[%emt 00:00:31]} 39. Qg2
{[%clk 00:00:21]} {[%emt 00:00:11]} Ne7 {[%clk 00:01:32]} {[%emt 00:00:45]} 40.
h3 {[%clk 00:00:25]} {[%emt 00:00:06]} Qg6 {[%clk 00:01:40]} {[%emt 00:00:02]}
41. Bd2 {[%clk 00:00:27]} {[%emt 00:00:08]} Nf5 {[%clk 00:01:42]} {[%emt
00:00:08]} 42. Kh2 {[%clk 00:00:35]} {[%emt 00:00:01]} Nd4 {[%clk 00:01:45]}
{[%emt 00:00:08]} 43. Re3 {[%clk 00:00:37]} {[%emt 00:00:08]} Bh6 {[%clk
00:01:39]} {[%emt 00:00:16]} 44. Ree1 {[%clk 00:00:36]} {[%emt 00:00:13]} Bxd2
{[%clk 00:01:41]} {[%emt 00:00:06]} 45. Nxd2 {[%clk 00:00:44]} {[%emt
00:00:02]} Qd3 {[%clk 00:01:09]} {[%emt 00:00:42]} 46. Rxf8 {[%clk 00:00:26]}
{[%emt 00:00:28]} Rxf8 {[%clk 00:01:19]} 47. Rf1 {[%clk 00:00:27]} {[%emt
00:00:09]} Rxf1 {[%clk 00:01:22]} {[%emt 00:00:07]} 48. Nxf1 {[%clk 00:00:36]}
{[%emt 00:00:01]} Qxb3 {[%clk 00:01:22]} {[%emt 00:00:09]} 49. Kh1 {[%clk
00:00:23]} {[%emt 00:00:22]} Qxc4 {[%clk 00:01:27]} {[%emt 00:00:06]} 50. g4
{[%clk 00:00:27]} {[%emt 00:00:06]} hxg4 {[%clk 00:01:13]} {[%emt 00:00:24]} 51.
hxg4 {[%clk 00:00:36]} {[%emt 00:00:01]} Kg7 {[%clk 00:01:20]} {[%emt
00:00:03]} 52. Ng3 {[%clk 00:00:43]} {[%emt 00:00:03]} Qc1+ {[%clk 00:01:19]}
{[%emt 00:00:11]} 53. Kh2 {[%clk 00:00:46]} {[%emt 00:00:07]} Qh6+ {[%clk
00:01:22]} {[%emt 00:00:07]} 54. Nh5+ {[%clk 00:00:54]} {[%emt 00:00:02]} Kh8
{[%clk 00:01:06]} {[%emt 00:00:27]} 55. Qf1 {[%clk 00:01:01]} {[%emt 00:00:02]}
e4 {[%clk 00:00:59]} {[%emt 00:00:17]} 56. Qf7 {[%clk 00:01:02]} {[%emt
00:00:09]} Nf3+ {[%clk 00:01:03]} {[%emt 00:00:07]} 57. Kg3 {[%clk 00:01:05]}
{[%emt 00:00:06]} Ne5 {[%clk 00:00:56]} {[%emt 00:00:17]} 58. Qe8+ {[%clk
00:01:05]} {[%emt 00:00:11]} Kh7 {[%clk 00:00:57]} {[%emt 00:00:08]} 59. Qe7+
{[%clk 00:01:11]} {[%emt 00:00:03]} Kh8 {[%clk 00:01:03]} {[%emt 00:00:05]} 60.
Qd8+ {[%clk 00:01:00]} {[%emt 00:00:21]} Kh7 {[%clk 00:01:12]} 61. Qxc7+ {[%clk
00:01:09]} {[%emt 00:00:02]} Kh8 {[%clk 00:01:19]} {[%emt 00:00:02]} 62. Qxb6
{[%clk 00:00:57]} {[%emt 00:00:22]} Qf8 {[%clk 00:01:20]} {[%emt 00:00:09]} 63.
Nf4 {[%clk 00:00:49]} {[%emt 00:00:17]} Qg7 {[%clk 00:01:05]} {[%emt 00:00:26]}
64. Qd8+ {[%clk 00:00:53]} {[%emt 00:00:06]} Kh7 {[%clk 00:01:10]} {[%emt
00:00:05]} 65. g5 {[%clk 00:00:59]} {[%emt 00:00:04]} e3 {[%clk 00:00:47]}
{[%emt 00:00:33]} 66. Ne6 {[%clk 00:00:54]} {[%emt 00:00:15]} Qf7 {[%clk
00:00:47]} {[%emt 00:00:11]} 67. Qc7 {[%clk 00:00:30]} {[%emt 00:00:34]} Qxc7
{[%clk 00:00:49]} {[%emt 00:00:08]} 68. Nxc7 {[%clk 00:00:38]} Kg6 {[%clk
00:00:53]} {[%emt 00:00:06]} 69. Nb5 {[%clk 00:00:43]} {[%emt 00:00:05]} Nc4
{[%clk 00:01:00]} {[%emt 00:00:04]} 70. Kf3 {[%clk 00:00:40]} {[%emt 00:00:13]}
Kxg5 {[%clk 00:01:08]} {[%emt 00:00:01]} 71. Na7 {[%clk 00:00:49]} Kf5 {[%clk
00:01:11]} {[%emt 00:00:07]} 72. Nc6 {[%clk 00:00:55]} {[%emt 00:00:03]} Nb2
{[%clk 00:01:16]} {[%emt 00:00:06]} 73. Kxe3 {[%clk 00:01:03]} {[%emt
00:00:02]} Nxa4 {[%clk 00:01:24]} {[%emt 00:00:03]} 74. Nxa5 {[%clk 00:01:11]}
Ke5 {[%clk 00:01:32]} {[%emt 00:00:02]} 75. Nb7 {[%clk 00:01:20]} Kxd5 {[%clk
00:01:41]} {[%emt 00:00:01]} 76. Nxd6 {[%clk 00:01:29]} Ke5 {[%emt 00:00:12]}
77. Ke4+ 1/2-1/2

[Event "Snabb-SM för veteraner, 50+ 2019"]
[Site "Schackcentrum, Vegagatan 20, Gothenburg, Sweden"]
[Date "2019.10.05"]
[Round "3.3"]
[White "Hautajarvi, Jukka"]
[Black "Svenn, Matti"]
[Result "1/2-1/2"]
[TimeControl "15 minutes + 10 seconds per move from move one"]
[WhiteFideId "1716190"]
[BlackFideId "1705091"]
[WhiteElo "2145"]
[BlackElo "2195"]

1. d4 {[%clk 00:15:18]} {[%emt 01:34:58]} Nf6 {[%clk 00:15:18]} {[%emt
00:00:04]} 2. Nf3 {[%clk 00:15:26]} {[%emt 00:00:02]} g6 {[%clk 00:15:26]}
{[%emt 00:00:02]} 3. g3 {[%clk 00:15:29]} {[%emt 00:00:07]} Bg7 {[%clk
00:15:35]} 4. Bg2 {[%clk 00:15:38]} O-O {[%clk 00:15:44]} {[%emt 00:00:02]} 5.
O-O {[%clk 00:15:46]} {[%emt 00:00:01]} d5 {[%clk 00:15:52]} {[%emt 00:00:01]}
6. c4 {[%clk 00:15:13]} {[%emt 00:00:44]} dxc4 {[%clk 00:15:51]} {[%emt
00:00:11]} 7. Ne5 {[%clk 00:15:20]} {[%emt 00:00:02]} Nc6 {[%clk 00:15:54]}
{[%emt 00:00:07]} 8. Nxc6 {[%clk 00:15:17]} {[%emt 00:00:13]} bxc6 {[%clk
00:16:02]} {[%emt 00:00:02]} 9. Qa4 {[%clk 00:15:14]} {[%emt 00:00:13]} Nd5
{[%clk 00:13:27]} {[%emt 00:02:45]} 10. Qxc4 {[%clk 00:14:30]} {[%emt
00:00:55]} Rb8 {[%clk 00:12:46]} {[%emt 00:00:50]} 11. Rd1 {[%clk 00:13:47]}
{[%emt 00:00:52]} Qd6 {[%clk 00:12:13]} {[%emt 00:00:44]} 12. Nc3 {[%clk
00:13:29]} {[%emt 00:00:28]} Rb4 {[%clk 00:11:21]} {[%emt 00:01:02]} 13. Bxd5
{[%clk 00:12:49]} {[%emt 00:00:50]} Rxc4 {[%clk 00:11:07]} {[%emt 00:00:25]} 14.
Bxc4 {[%clk 00:12:57]} Qb4 {[%clk 00:10:11]} {[%emt 00:01:06]} 15. Bb3 {[%clk
00:13:05]} {[%emt 00:00:03]} Bxd4 {[%clk 00:10:00]} {[%emt 00:00:21]} 16. Bd2
{[%clk 00:12:54]} {[%emt 00:00:20]} Qb6 {[%clk 00:09:08]} {[%emt 00:01:02]} 17.
Be1 {[%clk 00:12:47]} {[%emt 00:00:17]} Bg7 {[%clk 00:08:22]} {[%emt 00:00:56]}
18. Rac1 {[%clk 00:12:49]} {[%emt 00:00:08]} Bg4 {[%clk 00:08:26]} {[%emt
00:00:06]} 19. Na4 {[%clk 00:12:33]} {[%emt 00:00:27]} Qb5 {[%clk 00:08:20]}
{[%emt 00:00:15]} 20. f3 {[%clk 00:12:23]} {[%emt 00:00:19]} Bh3 {[%clk
00:08:05]} {[%emt 00:00:25]} 21. Kf2 {[%clk 00:12:05]} {[%emt 00:00:29]} h5
{[%clk 00:06:54]} {[%emt 00:01:21]} 22. Rc4 {[%clk 00:10:45]} {[%emt 00:01:29]}
Be6 {[%clk 00:04:32]} {[%emt 00:02:33]} 23. Rb4 {[%clk 00:10:53]} {[%emt
00:00:02]} Qf5 {[%clk 00:04:40]} 24. Rf4 {[%clk 00:10:39]} {[%emt 00:00:25]}
Bxb3 {[%clk 00:04:16]} {[%emt 00:00:34]} 25. Rxf5 {[%clk 00:10:47]} {[%emt
00:00:03]} Bxa4 {[%clk 00:04:21]} {[%emt 00:00:05]} 26. b3 {[%clk 00:10:46]}
{[%emt 00:00:10]} gxf5 {[%clk 00:04:28]} {[%emt 00:00:03]} 27. bxa4 {[%clk
00:10:55]} Rb8 {[%clk 00:04:25]} {[%emt 00:00:13]} 28. Rc1 {[%clk 00:11:04]}
{[%emt 00:00:02]} Rb2 {[%clk 00:04:29]} {[%emt 00:00:07]} 29. Rxc6 {[%clk
00:10:00]} {[%emt 00:01:13]} Rxa2 {[%clk 00:04:38]} {[%emt 00:00:02]} 30. Rxc7
{[%clk 00:10:01]} {[%emt 00:00:09]} e6 {[%clk 00:03:52]} {[%emt 00:00:56]} 31.
a5 {[%clk 00:10:09]} {[%emt 00:00:02]} Bd4+ {[%clk 00:04:00]} {[%emt 00:00:01]}
32. Kf1 {[%clk 00:10:17]} {[%emt 00:00:02]} Ra1 {[%clk 00:04:09]} {[%emt
00:00:01]} 33. e4 {[%clk 00:09:50]} {[%emt 00:00:37]} fxe4 {[%clk 00:03:58]}
{[%emt 00:00:21]} 34. fxe4 {[%clk 00:09:59]} {[%emt 00:00:01]} Kg7 {[%clk
00:04:07]} 35. Ke2 {[%clk 00:09:42]} {[%emt 00:00:28]} Kf6 {[%clk 00:03:59]}
{[%emt 00:00:18]} 36. Bd2 {[%clk 00:09:39]} {[%emt 00:00:14]} Ra2 {[%clk
00:04:04]} {[%emt 00:00:06]} 37. Kd3 {[%clk 00:09:44]} {[%emt 00:00:04]} Bg1
{[%clk 00:03:38]} {[%emt 00:00:36]} 38. h3 {[%clk 00:08:54]} {[%emt 00:01:00]}
Kg6 {[%clk 00:03:23]} {[%emt 00:00:25]} 39. g4 {[%clk 00:08:00]} {[%emt
00:01:04]} hxg4 {[%clk 00:03:32]} 40. hxg4 {[%clk 00:08:10]} Ra3+ {[%clk
00:03:27]} {[%emt 00:00:16]} 41. Ke2 {[%clk 00:08:07]} {[%emt 00:00:13]} Bd4
{[%clk 00:03:23]} {[%emt 00:00:14]} 42. Rc8 {[%clk 00:07:52]} {[%emt 00:00:24]}
Rg3 {[%clk 00:03:10]} {[%emt 00:00:23]} 43. g5 {[%clk 00:07:27]} {[%emt
00:00:35]} Ra3 {[%clk 00:02:53]} {[%emt 00:00:27]} 44. Rg8+ {[%clk 00:07:32]}
{[%emt 00:00:05]} Kh7 {[%clk 00:03:01]} {[%emt 00:00:02]} 45. Rd8 {[%clk
00:07:31]} {[%emt 00:00:11]} e5 {[%clk 00:03:02]} {[%emt 00:00:09]} 46. Rd6
{[%clk 00:07:30]} {[%emt 00:00:11]} Kg7 {[%clk 00:03:02]} {[%emt 00:00:10]} 47.
Rc6 {[%clk 00:07:34]} {[%emt 00:00:06]} 1/2-1/2

[Event "Snabb-SM för veteraner, 50+ 2019"]
[Site "Schackcentrum, Vegagatan 20, Gothenburg, Sweden"]
[Date "2019.10.05"]
[Round "3.4"]
[White "Naslund, Mikael"]
[Black "Holst, Conny"]
[Result "1/2-1/2"]
[TimeControl "15 minutes + 10 seconds per move from move one"]
[WhiteTitle "FM"]
[WhiteFideId "1708260"]
[BlackFideId "1701428"]
[WhiteElo "2076"]
[BlackElo "2166"]

1. d4 {[%clk 00:15:18]} {[%emt 00:00:02]} Nf6 {[%clk 00:15:00]} {[%emt
00:00:20]} 2. c4 {[%clk 00:15:24]} {[%emt 00:00:04]} e6 {[%clk 00:14:58]}
{[%emt 00:00:12]} 3. Nf3 {[%clk 00:15:30]} {[%emt 00:00:04]} Bb4+ {[%clk
00:15:04]} {[%emt 00:00:04]} 4. Bd2 {[%clk 00:15:36]} {[%emt 00:00:03]} a5
{[%clk 00:15:11]} {[%emt 00:00:03]} 5. Nc3 {[%clk 00:15:12]} {[%emt 00:00:35]}
d6 {[%clk 00:14:57]} {[%emt 00:00:24]} 6. Qc2 {[%clk 00:14:20]} {[%emt
00:01:02]} Nbd7 {[%clk 00:14:32]} {[%emt 00:00:35]} 7. a3 {[%clk 00:14:05]}
{[%emt 00:00:25]} Bxc3 {[%clk 00:14:36]} {[%emt 00:00:06]} 8. Bxc3 {[%clk
00:14:14]} {[%emt 00:00:02]} Qe7 {[%clk 00:13:58]} {[%emt 00:00:48]} 9. e3
{[%clk 00:13:42]} {[%emt 00:00:42]} O-O {[%clk 00:13:20]} {[%emt 00:00:47]} 10.
Be2 {[%clk 00:13:38]} {[%emt 00:00:14]} Re8 {[%clk 00:12:43]} {[%emt 00:00:48]}
11. O-O {[%clk 00:13:38]} {[%emt 00:00:10]} e5 {[%clk 00:12:51]} {[%emt
00:00:02]} 12. b4 {[%clk 00:13:13]} {[%emt 00:00:35]} e4 {[%clk 00:12:40]}
{[%emt 00:00:20]} 13. Nd2 {[%clk 00:13:02]} {[%emt 00:00:21]} axb4 {[%clk
00:11:57]} {[%emt 00:00:54]} 14. axb4 {[%clk 00:13:07]} {[%emt 00:00:05]} Rxa1
{[%clk 00:12:05]} {[%emt 00:00:02]} 15. Rxa1 {[%clk 00:12:38]} {[%emt
00:00:38]} Nf8 {[%clk 00:11:17]} {[%emt 00:00:58]} 16. d5 {[%clk 00:11:59]}
{[%emt 00:00:49]} Ng6 {[%clk 00:11:22]} {[%emt 00:00:05]} 17. Ra7 {[%clk
00:11:41]} {[%emt 00:00:29]} b6 {[%clk 00:09:30]} {[%emt 00:02:02]} 18. Bxf6
{[%clk 00:10:19]} {[%emt 00:01:31]} gxf6 {[%clk 00:09:20]} {[%emt 00:00:21]} 19.
c5 {[%clk 00:08:34]} {[%emt 00:01:55]} dxc5 {[%clk 00:09:05]} {[%emt 00:00:25]}
20. bxc5 {[%clk 00:08:42]} {[%emt 00:00:02]} bxc5 {[%clk 00:08:49]} {[%emt
00:00:26]} 21. Nb3 {[%clk 00:08:46]} {[%emt 00:00:06]} Rd8 {[%clk 00:08:17]}
{[%emt 00:00:42]} 22. Qxc5 {[%clk 00:06:02]} {[%emt 00:02:53]} Qxc5 {[%clk
00:08:11]} {[%emt 00:00:17]} 23. Nxc5 {[%clk 00:06:11]} f5 {[%clk 00:07:08]}
{[%emt 00:01:13]} 24. Rxc7 {[%clk 00:06:03]} {[%emt 00:00:18]} Ne5 {[%emt
00:00:35]} 25. h3 {[%clk 00:05:55]} {[%emt 00:00:17]} Kg7 {[%clk 00:06:24]}
{[%emt 00:00:30]} 26. Bb5 {[%clk 00:04:28]} {[%emt 00:01:37]} Kf6 {[%clk
00:06:19]} {[%emt 00:00:15]} 27. d6 {[%clk 00:04:28]} {[%emt 00:00:10]} Be6
{[%clk 00:05:52]} {[%emt 00:00:37]} 28. Nb7 {[%clk 00:04:17]} {[%emt 00:00:21]}
Rc8 {[%clk 00:05:07]} {[%emt 00:00:55]} 29. Rxc8 {[%clk 00:02:06]} {[%emt
00:02:21]} Bxc8 {[%clk 00:05:15]} {[%emt 00:00:02]} 30. Nc5 {[%clk 00:02:13]}
{[%emt 00:00:03]} Be6 {[%clk 00:05:21]} {[%emt 00:00:03]} 31. Kh2 {[%clk
00:01:23]} {[%emt 00:01:00]} Bd5 {[%clk 00:04:58]} {[%emt 00:00:33]} 32. Kg3
{[%clk 00:00:57]} {[%emt 00:00:36]} Ng6 {[%clk 00:04:49]} {[%emt 00:00:20]} 33.
h4 {[%clk 00:00:54]} {[%emt 00:00:13]} h6 {[%clk 00:04:38]} {[%emt 00:00:20]}
34. h5 {[%clk 00:00:52]} {[%emt 00:00:11]} Nf8 {[%clk 00:04:45]} {[%emt
00:00:04]} 35. Kf4 {[%clk 00:00:54]} {[%emt 00:00:08]} Ne6+ {[%clk 00:04:32]}
{[%emt 00:00:23]} 36. Nxe6 {[%clk 00:01:01]} {[%emt 00:00:03]} fxe6 {[%clk
00:04:40]} {[%emt 00:00:02]} 37. g4 {[%clk 00:00:38]} {[%emt 00:00:33]} e5+
{[%clk 00:04:30]} {[%emt 00:00:20]} 38. Kg3 {[%clk 00:00:47]} fxg4 {[%clk
00:04:32]} {[%emt 00:00:08]} 39. Kxg4 {[%clk 00:00:50]} {[%emt 00:00:07]} Be6+
{[%clk 00:04:21]} {[%emt 00:00:21]} 40. Kh4 {[%clk 00:00:43]} {[%emt 00:00:17]}
Bf5 {[%clk 00:04:23]} {[%emt 00:00:08]} 41. Bc6 {[%clk 00:00:46]} {[%emt
00:00:06]} Ke6 {[%clk 00:04:20]} {[%emt 00:00:13]} 42. d7 {[%clk 00:00:54]}
{[%emt 00:00:02]} Ke7 {[%clk 00:04:28]} {[%emt 00:00:02]} 43. Kg3 {[%clk
00:00:50]} {[%emt 00:00:14]} Kd8 {[%clk 00:03:58]} {[%emt 00:00:40]} 44. Kh4
{[%clk 00:00:23]} {[%emt 00:00:37]} Ke7 {[%clk 00:04:06]} 45. Kg3 {[%clk
00:00:31]} {[%emt 00:00:03]} Kd8 {[%clk 00:04:15]} 46. Kg2 {[%clk 00:00:18]}
{[%emt 00:00:23]} Ke7 {[%clk 00:04:12]} {[%emt 00:00:13]} 47. Kf1 {[%clk
00:00:26]} {[%emt 00:00:01]} Bg4 {[%clk 00:03:50]} {[%emt 00:00:33]} 48. Bxe4
{[%clk 00:00:30]} {[%emt 00:00:06]} Kxd7 {[%clk 00:03:58]} {[%emt 00:00:02]} 49.
Bg6 {[%clk 00:00:39]} Ke7 {[%clk 00:04:06]} {[%emt 00:00:02]} 50. Kg2 {[%clk
00:00:43]} {[%emt 00:00:06]} Kf6 {[%clk 00:04:15]} {[%emt 00:00:02]} 51. f3
{[%clk 00:00:52]} {[%emt 00:00:02]} Bd7 {[%clk 00:04:20]} {[%emt 00:00:04]} 52.
Kg3 {[%clk 00:01:00]} {[%emt 00:00:02]} Kg5 {[%clk 00:04:22]} {[%emt 00:00:08]}
53. f4+ {[%clk 00:01:08]} {[%emt 00:00:03]} exf4+ {[%clk 00:04:31]} {[%emt
00:00:02]} 54. exf4+ {[%clk 00:01:17]} Kf6 {[%clk 00:04:39]} 55. Kf3 {[%clk
00:01:24]} {[%emt 00:00:03]} Be6 {[%clk 00:04:30]} {[%emt 00:00:20]} 56. Ke3
{[%clk 00:01:33]} Bb3 {[%clk 00:04:37]} {[%emt 00:00:02]} 57. Kd4 {[%clk
00:01:42]} {[%emt 00:00:01]} Ba2 {[%clk 00:04:44]} {[%emt 00:00:04]} 58. Kc5
{[%clk 00:01:50]} {[%emt 00:00:02]} Bb3 {[%clk 00:04:50]} {[%emt 00:00:04]} 59.
Kd6 {[%clk 00:01:59]} {[%emt 00:00:01]} Bc4 {[%clk 00:04:58]} {[%emt 00:00:02]}
60. Kd7 {[%clk 00:02:03]} {[%emt 00:00:07]} Bb5+ {[%clk 00:05:05]} {[%emt
00:00:03]} 61. Kd8 {[%clk 00:02:11]} {[%emt 00:00:01]} Ba4 {[%clk 00:05:13]}
{[%emt 00:00:01]} 62. Kc7 {[%clk 00:02:15]} {[%emt 00:00:07]} Bb5 {[%clk
00:05:21]} {[%emt 00:00:03]} 63. Kd6 Ke5+ 64. Kxe5 1/2-1/2

[Event "Snabb-SM för veteraner, 50+ 2019"]
[Site "Schackcentrum, Vegagatan 20, Gothenburg, Sweden"]
[Date "2019.10.05"]
[Round "3.5"]
[White "Andersson, Johan"]
[Black "Eriksson, Kristian"]
[Result "1/2-1/2"]
[TimeControl "15 minutes + 10 seconds per move from move one"]
[WhiteFideId "1703935"]
[BlackFideId "1705172"]
[WhiteElo "2152"]
[BlackElo "2025"]

1. e4 {[%clk 00:15:17]} {[%emt 00:00:02]} e5 {[%clk 00:15:15]} {[%emt
00:00:06]} 2. Nf3 {[%clk 00:15:24]} {[%emt 00:00:02]} Nc6 {[%clk 00:15:22]}
{[%emt 00:00:03]} 3. c3 {[%clk 00:15:32]} {[%emt 00:00:03]} Nf6 {[%clk
00:15:17]} {[%emt 00:00:14]} 4. d4 {[%clk 00:15:35]} {[%emt 00:00:07]} Nxe4
{[%clk 00:15:04]} {[%emt 00:00:22]} 5. d5 {[%clk 00:15:41]} {[%emt 00:00:05]}
Bc5 {[%clk 00:14:34]} {[%emt 00:00:40]} 6. dxc6 {[%clk 00:15:31]} {[%emt
00:00:20]} Bxf2+ {[%clk 00:14:11]} {[%emt 00:00:32]} 7. Ke2 {[%clk 00:15:39]}
{[%emt 00:00:03]} O-O {[%clk 00:13:23]} {[%emt 00:00:58]} 8. Nbd2 {[%clk
00:14:42]} {[%emt 00:01:07]} Nxd2 {[%clk 00:11:13]} {[%emt 00:02:19]} 9. Bxd2
{[%clk 00:11:16]} {[%emt 00:03:36]} Bb6 {[%clk 00:11:03]} {[%emt 00:00:20]} 10.
cxd7 {[%clk 00:10:38]} {[%emt 00:00:49]} Bxd7 {[%clk 00:10:22]} {[%emt
00:00:50]} 11. Be3 {[%clk 00:09:29]} {[%emt 00:01:20]} e4 {[%clk 00:08:56]}
{[%emt 00:01:36]} 12. Ne5 {[%clk 00:09:05]} {[%emt 00:00:33]} Bb5+ {[%clk
00:06:16]} {[%emt 00:02:50]} 13. c4 {[%clk 00:08:55]} {[%emt 00:00:21]} Qf6
{[%clk 00:05:20]} {[%emt 00:01:04]} 14. Bxb6 {[%clk 00:06:32]} {[%emt
00:02:34]} axb6 {[%clk 00:04:31]} {[%emt 00:00:59]} 15. cxb5 {[%clk 00:05:56]}
{[%emt 00:00:46]} Qxe5 {[%clk 00:04:38]} {[%emt 00:00:03]} 16. Qb3 {[%clk
00:05:25]} {[%emt 00:00:40]} Rfd8 {[%clk 00:04:09]} {[%emt 00:00:40]} 17. Qc3
{[%clk 00:03:14]} {[%emt 00:02:20]} Qf4 {[%clk 00:02:46]} {[%emt 00:01:34]} 18.
Qe3 {[%clk 00:02:29]} {[%emt 00:00:54]} Qe5 {[%clk 00:02:51]} {[%emt 00:00:05]}
19. Qc3 {[%clk 00:02:27]} {[%emt 00:00:12]} Qf4 {[%clk 00:02:39]} {[%emt
00:00:22]} 20. Qe3 {[%clk 00:01:30]} {[%emt 00:01:08]} Qe5 {[%clk 00:02:46]}
{[%emt 00:00:03]} 21. Qc3 {[%clk 00:01:08]} {[%emt 00:00:31]} 1/2-1/2